bitfinex/quotes_BTCUSD_20250908
["timestamp","ask_amount","ask_price","bid_price","bid_amount"]
[1757375196992,1.65749756,112040.0,112030.0,1e-08]
[1757375199870,0.969,112040.0,112030.0,1e-08]
[1757375200282,1.65749756,112040.0,112030.0,1e-08]
[1757375203271,0.82008,112040.0,112030.0,1e-08]
[1757375203478,0.96689,112040.0,112030.0,0.00535001]
[1757375203916,1.65745756,112040.0,112030.0,0.00535001]
[1757375204141,1.65745756,112040.0,112030.0,1e-08]
[1757375206018,1.50857756,112040.0,112030.0,1e-08]
[1757375206214,1.65745756,112040.0,112030.0,0.00320001]
[1757375206449,0.96896,112040.0,112030.0,0.00320001]
[1757375206634,1.65745756,112040.0,112030.0,0.00320001]
[1757375206776,1.65745756,112040.0,112030.0,1e-08]
[1757375209936,0.82008,112040.0,112030.0,1e-08]
[1757375210148,0.96896,112040.0,112030.0,1e-08]
[1757375210352,1.65745756,112040.0,112030.0,1e-08]
[1757375211939,0.96896,112040.0,112030.0,1e-08]
[1757375212164,1.65745756,112040.0,112030.0,1e-08]
[1757375212592,0.96896,112040.0,112030.0,1e-08]
[1757375212801,1.65745756,112040.0,112030.0,1e-08]
[1757375214227,0.96896,112040.0,112030.0,1e-08]
[1757375214445,1.65745756,112040.0,112030.0,1e-08]
[1757375218658,1.65746993,112040.0,112030.0,1e-08]
[1757375219960,0.96897237,112040.0,112030.0,1e-08]
[1757375220195,1.65746993,112040.0,112030.0,1e-08]
[1757375221516,1.65747219,112040.0,112030.0,1e-08]
[1757375223382,1.68295741,112040.0,112030.0,1e-08]
[1757375223564,1.68158741,112040.0,112030.0,1e-08]
[1757375226919,1.53270741,112040.0,112030.0,0.00215001]
[1757375227147,1.68154741,112040.0,112030.0,0.00535001]
[1757375227648,1.68154741,112040.0,112030.0,0.00320001]
[1757375227769,0.99304985,112040.0,112030.0,0.00320001]
[1757375227970,1.68154741,112040.0,112030.0,0.00320001]
[1757375228171,1.68154741,112040.0,112030.0,1e-08]
[1757375228991,0.99304985,112040.0,112030.0,0.00320001]
[1757375229183,1.68154741,112040.0,112030.0,1e-08]
[1757375229428,0.72610864,112040.0,112030.0,0.00535001]
[1757375229642,1.21919742,112040.0,112030.0,0.00535001]
[1757375230530,0.87490864,112040.0,112030.0,0.00535001]
[1757375230712,1.21915742,112040.0,112030.0,0.00535001]
[1757375235780,1.22121742,112040.0,112030.0,0.00535001]
[1757375236026,1.65738219,112040.0,112030.0,0.00535001]
[1757375237320,1.65532219,112040.0,112030.0,0.00535001]
[1757375238948,0.87490864,112040.0,112030.0,0.00535001]
[1757375239180,1.21915742,112040.0,112030.0,0.00535001]
[1757375241133,0.36516982,112040.0,112030.0,0.00535001]
[1757375241339,0.45700297,112040.0,112030.0,0.00535001]
[1757375241767,0.64820297,112040.0,112030.0,0.00535001]
[1757375242407,0.63921173,112040.0,112030.0,0.00535001]
[1757375242620,0.29921173,112040.0,112030.0,0.00535001]
[1757375250398,0.38192093,112040.0,112030.0,0.00535001]
[1757375253566,0.29921173,112040.0,112030.0,0.00535001]
[1757375269247,0.34012262,112040.0,112030.0,0.00535001]
[1757375271954,0.29921173,112040.0,112030.0,0.00535001]
[1757375285553,0.29921173,112040.0,112030.0,0.00758155]
[1757375299588,0.27242366,112040.0,112030.0,0.00758155]
[1757375307475,0.18050767,112040.0,112030.0,0.00758155]
[1757375308371,0.18050767,112040.0,112030.0,0.18610515]
[1757375308574,0.18050767,112040.0,112030.0,0.00535001]
[1757375308783,0.18050767,112040.0,112030.0,0.00758155]
[1757375309102,0.17950767,112040.0,112030.0,0.00758155]
[1757375309630,0.17850767,112040.0,112030.0,0.00758155]
[1757375311100,0.17850767,112040.0,112030.0,0.18610515]
[1757375311434,0.17850767,112040.0,112030.0,0.18387361]
[1757375316564,0.17850767,112040.0,112030.0,0.21065666]
[1757375317513,0.17850767,112040.0,112030.0,0.18077306]
[1757375320377,0.17850767,112040.0,112030.0,0.35929666]
[1757375325072,0.17850767,112040.0,112030.0,0.18077306]
[1757375334951,0.17850767,112040.0,112030.0,0.03213306]
[1757375335171,1.03279043,112040.0,112030.0,0.15395001]
[1757375335313,1.03047737,112040.0,112030.0,0.15395001]
[1757375335536,0.27042366,112040.0,112030.0,0.15395001]
[1757375335759,0.61441117,112040.0,112030.0,0.15395001]
[1757375336051,0.29721037,112040.0,112030.0,0.15395001]
[1757375336259,0.64119788,112040.0,112030.0,0.15395001]
[1757375337032,0.29721037,112040.0,112030.0,0.15395001]
[1757375337191,0.64119788,112040.0,112030.0,0.15395001]
[1757375337977,0.64119788,112040.0,112030.0,0.22247001]
[1757375344327,0.29721037,112040.0,112030.0,0.22247001]
[1757375344470,0.64119788,112040.0,112030.0,0.22247001]
[1757375345065,0.98518539,112040.0,112030.0,0.22247001]
[1757375347126,0.64119788,112040.0,112030.0,0.22247001]
[1757375348100,0.29721037,112040.0,112030.0,0.22247001]
[1757375348710,0.64119788,112040.0,112030.0,0.22247001]
[1757375349358,0.20529438,112040.0,112030.0,0.22247001]
[1757375349763,0.54928189,112040.0,112030.0,0.22247001]
[1757375349968,0.52249518,112040.0,112030.0,0.22247001]
[1757375353176,0.17850767,112040.0,112030.0,0.22247001]
[1757375353383,0.52249518,112040.0,112030.0,0.22247001]
[1757375353592,0.17850767,112040.0,112030.0,0.22247001]
[1757375353800,0.52249518,112040.0,112030.0,0.22247001]
[1757375355468,0.17850767,112040.0,112030.0,0.22247001]
[1757375356154,0.52249518,112040.0,112030.0,0.22247001]
[1757375356811,0.86648269,112040.0,112030.0,0.22247001]
[1757375357245,0.52249518,112040.0,112030.0,0.22247001]
[1757375357449,0.52249518,112040.0,112030.0,0.07387001]
[1757375357609,0.52249518,112040.0,112030.0,0.22247001]
[1757375358064,0.52249518,112040.0,112030.0,0.07387001]
[1757375358232,0.18046767,112040.0,112030.0,0.22247001]
[1757375358471,0.86844269,112040.0,112030.0,0.22247001]
[1757375360204,0.17850767,112040.0,112030.0,0.22247001]
[1757375360386,0.86879575,112040.0,112030.0,0.22247001]
[1757375360583,0.86648269,112040.0,112030.0,0.22247001]
[1757375361219,0.86844269,112040.0,112030.0,0.22247001]
[1757375363137,0.17850767,112040.0,112030.0,0.22247001]
[1757375363318,0.18082073,112040.0,112030.0,0.22247001]
[1757375363523,0.86879575,112040.0,112030.0,0.22247001]
[1757375363749,0.86648269,112040.0,112030.0,0.22247001]
[1757375364587,0.8932684,112040.0,112030.0,0.22247001]
[1757375374424,0.54944983,112040.0,112030.0,0.22247001]
[1757375378628,0.52266412,112040.0,112030.0,0.22247001]
[1757375379156,0.17850767,112040.0,112030.0,0.07387001]
[1757375379377,0.52497718,112040.0,112030.0,0.22243001]
[1757375379578,0.52266412,112040.0,112030.0,0.22243001]
[1757375387952,0.17850767,112040.0,112030.0,0.22243001]
[1757375388160,0.52497718,112040.0,112030.0,0.22243001]
[1757375388387,0.52266412,112040.0,112030.0,0.22243001]
[1757375398288,0.17850767,112040.0,112030.0,0.22243001]
[1757375398487,0.52497718,112040.0,112030.0,0.22243001]
[1757375398620,0.52266412,112040.0,112030.0,0.22243001]
[1757375400437,0.52464412,112040.0,112030.0,0.21708001]
[1757375400926,0.52464412,112040.0,112030.0,0.22014001]
[1757375402067,0.52464412,112040.0,112030.0,0.22211001]
[1757375405263,0.52464412,112040.0,112030.0,0.15359001]
[1757375407120,0.52266412,112040.0,112030.0,0.15359001]
[1757375410283,0.52464412,112040.0,112030.0,0.15359001]
[1757375411463,0.52266412,112040.0,112030.0,0.15359001]
[1757375412083,0.52464412,112040.0,112030.0,0.15359001]
[1757375412240,0.52266412,112040.0,112030.0,0.15359001]
[1757375414870,0.17850767,112040.0,112030.0,0.22211001]
[1757375415084,0.52497718,112040.0,112030.0,0.22211001]
[1757375415286,0.52266412,112040.0,112030.0,0.22211001]
[1757375416497,0.52464412,112040.0,112030.0,0.22211001]
[1757375416837,0.52266412,112040.0,112030.0,0.22207001]
[1757375418254,0.17850767,112040.0,112030.0,0.22207001]
[1757375418458,0.52497718,112040.0,112030.0,0.22207001]
[1757375418659,0.52266412,112040.0,112030.0,0.22207001]
[1757375420314,0.52464412,112040.0,112030.0,0.22207001]
[1757375424013,0.52266412,112040.0,112030.0,0.22207001]
[1757375436429,0.86684679,112040.0,112030.0,0.22207001]
[1757375439248,0.89363249,112040.0,112030.0,0.22207001]
[1757375439632,0.94637364,112040.0,112030.0,0.22207001]
[1757375441505,0.89561249,112040.0,112030.0,0.22207001]
[1757375444111,0.89561249,112040.0,112030.0,0.21704001]
[1757375444967,0.89561249,112040.0,112030.0,0.06852]
[1757375444968,0.98752848,112040.0,112030.0,0.06852]
[1757375445180,0.1785236,112030.0,112020.0,0.00308]
[1757375445387,0.17853954,112020.0,112010.0,0.0718]
[1757375445596,0.86885866,112020.0,112010.0,0.22028]
[1757375445804,0.92765772,112020.0,112010.0,0.22245]
[1757375446019,0.95444821,112020.0,112010.0,0.22245]
[1757375446640,0.95449433,112020.0,112010.0,0.22245]
[1757375447403,0.20735615,112020.0,112010.0,0.22245]
[1757375447598,0.89569527,112020.0,112010.0,0.22245]
[1757375449319,0.90470218,112020.0,112010.0,0.22245]
[1757375450077,0.90470218,112020.0,112010.0,0.22028]
[1757375450623,0.90470218,112020.0,112010.0,0.22245]
[1757375451424,0.21636306,112020.0,112010.0,0.22245]
[1757375451628,0.90470218,112020.0,112010.0,0.22245]
[1757375452210,0.21636306,112020.0,112010.0,0.22245]
[1757375452363,0.90470218,112020.0,112010.0,0.22245]
[1757375453140,0.99661817,112020.0,112010.0,0.2172]
[1757375453343,1.08853416,112020.0,112010.0,0.2172]
[1757375453758,1.08853416,112020.0,112010.0,0.22028]
[1757375453929,0.99661817,112020.0,112010.0,0.22028]
[1757375455268,0.99661817,112020.0,112010.0,0.2172]
[1757375455468,0.30827905,112020.0,112010.0,0.22245]
[1757375455645,0.99661817,112020.0,112010.0,0.22245]
[1757375458153,0.99661817,112020.0,112010.0,0.22028]
[1757375458683,0.99661817,112020.0,112010.0,0.2172]
[1757375460292,0.99661817,112020.0,112010.0,0.22028]
[1757375461013,1.08853416,112020.0,112010.0,0.2172]
[1757375461963,1.08998416,112020.0,112010.0,0.2172]
[1757375462580,1.08853416,112020.0,112010.0,0.2172]
[1757375462830,1.08853416,112020.0,112000.0,0.0002]
[1757375462831,0.51855548,112010.0,112000.0,0.0002]
[1757375463045,1.39072658,112010.0,112000.0,0.0002]
[1757375463282,1.39270658,112010.0,112000.0,0.0002]
[1757375463507,0.95807103,112010.0,112000.0,0.0002]
[1757375463638,0.98486685,112010.0,112000.0,0.0002]
[1757375463888,1.32903641,112010.0,112000.0,0.0002]
[1757375466173,1.36881785,112010.0,112000.0,0.0002]
[1757375466401,0.67902873,112010.0,112000.0,0.0002]
[1757375466594,1.46073384,112010.0,112000.0,0.0002]
[1757375472476,1.63019266,112010.0,112000.0,0.0002]
[1757375472978,1.65570693,112010.0,112000.0,0.0002]
[1757375474034,1.65770693,112010.0,112000.0,0.0002]
[1757375481626,1.99893222,112010.0,112000.0,0.0002]
[1757375482043,1.65476266,112010.0,112000.0,0.0002]
[1757375485390,1.67137482,112010.0,112000.0,0.0002]
[1757375491717,1.67137482,112010.0,112000.0,1e-08]
[1757375491913,1.69688909,112010.0,112000.0,1e-08]
[1757375492235,1.71605221,112010.0,112000.0,1e-08]
[1757375492442,0.19951024,112000.0,111990.0,1e-08]
[1757375492638,1.92102306,112000.0,111990.0,1e-08]
[1757375492851,1.96473618,112000.0,111990.0,1e-08]
[1757375493060,1.96618618,112000.0,111990.0,1e-08]
[1757375493239,1.99298792,112000.0,111990.0,1e-08]
[1757375494145,1.64981836,112000.0,111990.0,1e-08]
[1757375494583,1.65081836,112000.0,111990.0,1e-08]
[1757375495347,1.63165524,112000.0,111990.0,1e-08]
[1757375497003,1.48309524,112000.0,111990.0,1e-08]
[1757375497209,1.63169524,112000.0,111990.0,1e-08]
[1757375497605,1.63165524,112000.0,111990.0,1e-08]
[1757375497810,0.79475612,112000.0,111990.0,1e-08]
[1757375498014,1.63165524,112000.0,111990.0,1e-08]
[1757375498370,1.2878257,112000.0,111990.0,1e-08]
[1757375501940,0.94331612,112000.0,111990.0,1e-08]
[1757375502173,1.2878257,112000.0,111990.0,1e-08]
[1757375502790,1.1392757,112000.0,111990.0,1e-08]
[1757375502989,1.2879557,112000.0,111990.0,1e-08]
[1757375504081,1.1392757,112000.0,111990.0,1e-08]
[1757375504273,1.2879557,112000.0,111990.0,1e-08]
[1757375505055,1.1392757,112000.0,111990.0,1e-08]
[1757375505214,1.2880357,112000.0,111990.0,1e-08]
[1757375505429,0.94352612,112000.0,111990.0,1e-08]
[1757375505654,1.2880357,112000.0,111990.0,1e-08]
[1757375507979,1.1392757,112000.0,111990.0,1e-08]
[1757375508254,1.2640857,112000.0,111990.0,1e-08]
[1757375509203,1.1153257,112000.0,111990.0,1e-08]
[1757375509617,1.2640457,112000.0,111990.0,1e-08]
[1757375510044,1.24743354,112000.0,111990.0,1e-08]
[1757375511700,0.73326514,112000.0,111990.0,0.00495001]
[1757375511933,0.63928915,112000.0,111990.0,0.00495001]
[1757375515490,0.98379873,112000.0,111990.0,0.00495001]
[1757375516554,0.98577873,112000.0,111990.0,0.00495001]
[1757375517300,0.64126915,112000.0,111990.0,0.00495001]
[1757375517483,1.07769472,112000.0,111990.0,0.00495001]
[1757375524104,1.22645472,112000.0,111990.0,0.00495001]
[1757375525029,1.22645472,112000.0,111990.0,0.00294001]
[1757375525247,1.22645472,112000.0,111990.0,0.00495001]
[1757375528571,0.88194514,112000.0,111990.0,0.00495001]
[1757375528795,1.22645472,112000.0,111990.0,0.00495001]
[1757375530296,0.88194514,112000.0,111990.0,0.00495001]
[1757375530504,1.22645472,112000.0,111990.0,0.00495001]
[1757375532014,0.63928915,112000.0,111990.0,0.00495001]
[1757375532223,0.29928915,112000.0,111990.0,0.00495001]
[1757375536101,0.20737316,112000.0,111990.0,0.15367001]
[1757375536342,0.18057142,112000.0,111990.0,0.33225738]
[1757375538626,0.18057142,112000.0,111990.0,0.33221738]
[1757375538847,0.18057142,112000.0,111990.0,0.15363001]
[1757375539928,0.18057142,112000.0,111990.0,0.16253061]
[1757375541725,0.18057142,112000.0,111990.0,0.00495001]
[1757375541932,0.18057142,112000.0,111990.0,0.16245844]
[1757375544710,0.18057142,112000.0,111990.0,0.15359001]
[1757375545827,0.18057142,112000.0,111990.0,0.1625536]
[1757375546924,0.18057142,112000.0,111990.0,0.34114097]
[1757375547522,0.18057142,112000.0,111990.0,0.1625536]
[1757375557348,0.18057142,112000.0,111990.0,0.15351001]
[1757375558840,0.18057142,112000.0,111990.0,0.22203001]
[1757375559290,0.18057142,112000.0,111990.0,0.2307654]
[1757375562775,0.18057142,112000.0,111990.0,0.40935277]
[1757375563008,0.002,112000.0,111990.0,0.40935277]
[1757375563451,0.18057142,112000.0,111990.0,0.40935277]
[1757375568213,0.18057142,112000.0,111990.0,0.2307654]
[1757375571648,0.18057142,112000.0,111990.0,0.22203001]
[1757375572778,0.18057142,112000.0,111990.0,0.23092015]
[1757375572983,0.18057142,112000.0,111990.0,0.22199001]
[1757375594334,0.17957142,112000.0,111990.0,0.22199001]
[1757375594703,0.17857142,112000.0,111990.0,0.22199001]
[1757375595074,0.17857142,112000.0,111990.0,0.22299001]
[1757375595260,0.17857142,112000.0,111990.0,0.22199001]
[1757375595610,0.17857142,112000.0,111990.0,0.22299001]
[1757375619425,0.17857142,112000.0,111990.0,0.24978301]
[1757375619618,0.20536442,112000.0,111990.0,0.24978301]
[1757375620592,0.20536442,112000.0,111990.0,0.22299001]
[1757375652559,0.026793,112000.0,111990.0,0.40157738]
[1757375652767,0.17855548,112010.0,112000.0,0.17857142]
[1757375652947,0.20534704,112010.0,112000.0,0.18614356]
[1757375653148,0.02679156,112010.0,112000.0,0.18391142]
[1757375653379,0.18751263,112020.0,112000.0,0.18391142]
[1757375653581,0.21430271,112020.0,112010.0,0.15396194]
[1757375653846,0.18751263,112020.0,112010.0,0.33464742]
[1757375654052,0.18751263,112020.0,112010.0,0.33241548]
[1757375654678,0.18751263,112020.0,112010.0,0.35920403]
[1757375654883,0.00204612,112020.0,112010.0,0.35920403]
[1757375655315,4.612e-05,112020.0,112010.0,0.35920403]
[1757375656131,0.00304612,112020.0,112010.0,0.35920403]
[1757375656328,0.00104612,112020.0,112010.0,0.35920403]
[1757375656690,0.00204612,112020.0,112010.0,0.35920403]
[1757375660170,0.00104612,112020.0,112010.0,0.35920403]
[1757375660583,4.612e-05,112020.0,112010.0,0.36120403]
[1757375660942,4.612e-05,112020.0,112010.0,0.35920403]
[1757375661147,4.612e-05,112020.0,112010.0,0.36120403]
[1757375661573,4.612e-05,112020.0,112010.0,0.36220403]
[1757375664649,4.612e-05,112020.0,112010.0,0.45412002]
[1757375666624,4.612e-05,112020.0,112010.0,0.79412002]
[1757375667029,4.612e-05,112020.0,112010.0,0.81899002]
[1757375667190,4.612e-05,112020.0,112010.0,0.86899002]
[1757375667641,4.612e-05,112020.0,112010.0,0.88992884]
[1757375667980,4.612e-05,112020.0,112010.0,0.88892884]
[1757375668405,4.612e-05,112020.0,112010.0,0.89092884]
[1757375668626,4.612e-05,112020.0,112010.0,1.29092884]
[1757375669076,4.612e-05,112020.0,112010.0,1.23892884]
[1757375669275,4.612e-05,112020.0,112010.0,1.30815695]
[1757375669485,4.612e-05,112020.0,112010.0,1.31015695]
[1757375669691,4.612e-05,112020.0,112010.0,1.30815695]
[1757375670119,4.612e-05,112020.0,112010.0,1.31215695]
[1757375670324,4.612e-05,112020.0,112010.0,1.31015695]
[1757375670502,4.612e-05,112020.0,112010.0,1.31215695]
[1757375671141,4.612e-05,112020.0,112010.0,1.26215695]
[1757375671353,4.612e-05,112020.0,112010.0,1.31215695]
[1757375671556,4.612e-05,112020.0,112010.0,1.26215695]
[1757375671758,4.612e-05,112020.0,112010.0,1.31215695]
[1757375672314,4.612e-05,112020.0,112010.0,1.26215695]
[1757375672525,4.612e-05,112020.0,112010.0,1.31215695]
[1757375673887,4.612e-05,112020.0,112010.0,1.26215695]
[1757375674091,4.612e-05,112020.0,112010.0,1.33309577]
[1757375674513,4.612e-05,112020.0,112010.0,1.28309577]
[1757375674717,4.612e-05,112020.0,112010.0,1.33309577]
[1757375675170,4.612e-05,112020.0,112010.0,1.28309577]
[1757375675392,4.612e-05,112020.0,112010.0,1.33309577]
[1757375675873,4.612e-05,112020.0,112010.0,1.38775323]
[1757375676077,4.612e-05,112020.0,112010.0,1.46745144]
[1757375677402,4.612e-05,112020.0,112010.0,1.38775323]
[1757375677925,4.612e-05,112020.0,112010.0,1.23923323]
[1757375678157,4.612e-05,112020.0,112010.0,1.38787323]
[1757375679501,4.612e-05,112020.0,112010.0,1.31893144]
[1757375679685,4.612e-05,112020.0,112010.0,1.46757144]
[1757375679855,4.612e-05,112020.0,112010.0,1.31893144]
[1757375680070,4.612e-05,112020.0,112010.0,1.46753144]
[1757375680384,4.612e-05,112020.0,112010.0,1.31893144]
[1757375680620,4.612e-05,112020.0,112010.0,1.46753144]
[1757375685225,4.612e-05,112020.0,112010.0,1.56147144]
[1757375685543,4.612e-05,112020.0,112010.0,1.46753144]
[1757375686437,4.612e-05,112020.0,112010.0,1.73213144]
[1757375695637,4.612e-05,112020.0,112010.0,1.65243323]
[1757375696574,4.612e-05,112020.0,112010.0,1.11916167]
[1757375696784,4.612e-05,112020.0,112010.0,1.44666285]
[1757375696968,4.612e-05,112020.0,112010.0,1.78666285]
[1757375697177,4.612e-05,112020.0,112010.0,1.38666285]
[1757375697647,4.612e-05,112020.0,112010.0,1.78666285]
[1757375697846,4.612e-05,112020.0,112010.0,1.38666285]
[1757375698371,4.612e-05,112020.0,112010.0,1.52206285]
[1757375702179,4.612e-05,112020.0,112010.0,1.59058285]
[1757375704203,4.612e-05,112020.0,112010.0,1.61555285]
[1757375706522,4.612e-05,112020.0,112010.0,1.53535441]
[1757375709819,4.612e-05,112020.0,112010.0,1.64635401]
[1757375716733,4.612e-05,112020.0,112010.0,1.56885283]
[1757375716938,4.612e-05,112020.0,112010.0,1.76729283]
[1757375718755,6.12e-06,112020.0,112010.0,1.76729283]
[1757375719010,6.12e-06,112020.0,112010.0,1.65629323]
[1757375726476,6.12e-06,112020.0,112010.0,6.75023323]
[1757375726679,0.25799579,112070.0,112060.0,0.17847581]
[1757375726884,0.25799579,112070.0,112060.0,0.40296675]
[1757375727084,0.07061212,112070.0,112060.0,0.40073581]
[1757375727266,0.1785557,112080.0,112060.0,0.40073581]
[1757375727467,0.1785557,112080.0,112070.0,0.15168]
[1757375727896,0.1785557,112080.0,112070.0,0.15378]
[1757375728760,0.1825557,112080.0,112070.0,0.15378]
[1757375729116,0.1785557,112080.0,112070.0,0.15378]
[1757375729326,0.1815557,112080.0,112070.0,0.15378]
[1757375729548,0.1815557,112080.0,112070.0,0.00534]
[1757375729761,0.1815557,112080.0,112070.0,0.15394]
[1757375730594,0.1785557,112080.0,112070.0,0.15394]
[1757375730774,0.1805557,112080.0,112070.0,0.15394]
[1757375732054,0.1825557,112080.0,112070.0,0.15394]
[1757375733509,0.1845357,112080.0,112070.0,0.15394]
[1757375733704,0.1825557,112080.0,112070.0,0.15394]
[1757375733912,0.52648074,112080.0,112070.0,0.15394]
[1757375734979,0.18244396,112080.0,112070.0,0.33463063]
[1757375735196,0.004,112080.0,112070.0,0.33239989]
[1757375735386,0.004,112080.0,112070.0,0.42431588]
[1757375736284,0.002,112080.0,112070.0,0.42431588]
[1757375736737,0.17842804,112090.0,112080.0,0.17843778]
[1757375736940,0.17842804,112090.0,112080.0,0.33136832]
[1757375737190,0.17842804,112090.0,112080.0,0.33237778]
[1757375737847,0.17842804,112090.0,112080.0,0.1539]
[1757375738990,0.17942804,112090.0,112080.0,0.1539]
[1757375741149,0.17942804,112090.0,112080.0,0.15386]
[1757375741568,0.17942804,112090.0,112080.0,0.33230396]
[1757375748637,0.17942804,112090.0,112080.0,0.15386]
[1757375749049,0.17942804,112090.0,112080.0,0.33230396]
[1757375750831,0.17942804,112090.0,112080.0,0.00534]
[1757375751041,0.17845768,112080.0,112070.0,0.00303]
[1757375751266,0.17845768,112080.0,112070.0,0.15159]
[1757375751654,0.18043768,112080.0,112070.0,0.15159]
[1757375752198,0.18043768,112080.0,112070.0,0.14856]
[1757375752922,0.18043768,112080.0,112070.0,0.14956]
[1757375753310,0.18043768,112080.0,112070.0,0.15259]
[1757375753505,0.18043768,112080.0,112070.0,0.15466]
[1757375755111,0.17845768,112080.0,112070.0,0.33311989]
[1757375757004,0.17845768,112080.0,112070.0,0.15466]
[1757375758026,0.17845768,112080.0,112070.0,0.33311989]
[1757375758832,0.17845768,112080.0,112070.0,0.15466]
[1757375759067,0.17845768,112080.0,112070.0,0.33311989]
[1757375761852,0.17845768,112080.0,112070.0,0.15466]
[1757375762559,0.18043768,112080.0,112070.0,0.15466]
[1757375763579,0.17845768,112080.0,112070.0,0.15466]
[1757375778931,0.18043768,112080.0,112070.0,0.0061]
[1757375779141,0.17845768,112080.0,112070.0,0.15526]
[1757375781022,0.18043768,112080.0,112070.0,0.15016]
[1757375781252,0.52560447,112080.0,112070.0,0.001]
[1757375781494,0.61752046,112080.0,112070.0,0.001]
[1757375781742,0.61752046,112080.0,112070.0,0.15096]
[1757375782523,0.61752046,112080.0,112070.0,0.14996]
[1757375782758,0.61752046,112080.0,112070.0,0.15096]
[1757375783626,0.61852046,112080.0,112070.0,0.15096]
[1757375783895,0.61852046,112080.0,112070.0,0.14996]
[1757375784900,0.62732814,112080.0,112070.0,0.14996]
[1757375785350,0.28361135,112080.0,112070.0,0.14996]
[1757375785592,0.62732814,112080.0,112070.0,0.14996]
[1757375789355,0.17845989,112070.0,112060.0,0.06848]
[1757375789571,0.52593974,112070.0,112060.0,0.21896]
[1757375789780,0.52362668,112070.0,112060.0,0.21896]
[1757375790015,0.52415668,112070.0,112060.0,0.21896]
[1757375790244,0.52415668,112070.0,112060.0,0.06848]
[1757375790431,0.52415668,112070.0,112060.0,0.21896]
[1757375790943,0.52415668,112070.0,112060.0,0.21996]
[1757375791600,0.52415668,112070.0,112060.0,0.06948]
[1757375792251,0.52415668,112070.0,112060.0,0.21992]
[1757375792464,0.52415668,112070.0,112060.0,0.21988]
[1757375793817,0.52415668,112070.0,112060.0,0.21984]
[1757375794529,0.18043989,112070.0,112060.0,0.21984]
[1757375797915,0.52415668,112070.0,112060.0,0.21984]
[1757375799893,0.18043989,112070.0,112060.0,0.21984]
[1757375800127,0.52415668,112070.0,112060.0,0.21984]
[1757375800340,0.55093428,112070.0,112060.0,0.21984]
[1757375800962,0.20721749,112070.0,112060.0,0.21984]
[1757375804404,0.55115518,112070.0,112060.0,0.21984]
[1757375807559,0.20721749,112070.0,112060.0,0.21984]
[1757375807769,0.55115518,112070.0,112060.0,0.21984]
[1757375808407,0.20721749,112070.0,112060.0,0.21984]
[1757375808609,0.55115518,112070.0,112060.0,0.21984]
[1757375809339,0.20721749,112070.0,112060.0,0.21984]
[1757375809554,0.55115518,112070.0,112060.0,0.21984]
[1757375809849,0.20721749,112070.0,112060.0,0.21984]
[1757375810062,0.20721749,112070.0,112060.0,0.22486]
[1757375810296,0.20523749,112070.0,112060.0,0.22486]
[1757375810692,0.17845989,112070.0,112060.0,0.22486]
[1757375810910,0.18077295,112070.0,112060.0,0.22486]
[1757375812858,0.18275295,112070.0,112060.0,0.22486]
[1757375813047,0.18043989,112070.0,112060.0,0.22486]
[1757375815534,0.18043989,112070.0,112060.0,0.22284]
[1757375815738,0.18043989,112070.0,112060.0,0.21984]
[1757375815947,0.52437758,112070.0,112060.0,0.21984]
[1757375825027,0.52437758,112070.0,112060.0,0.06948]
[1757375825212,0.55115518,112070.0,112060.0,0.21944]
[1757375825726,0.55115518,112070.0,112060.0,0.06948]
[1757375825964,0.55115518,112070.0,112060.0,0.21948]
[1757375827426,0.20721749,112070.0,112060.0,0.21948]
[1757375827602,0.55115518,112070.0,112060.0,0.21948]
[1757375831530,0.55115518,112070.0,112060.0,0.06948]
[1757375831766,0.55260518,112070.0,112060.0,0.21948]
[1757375834839,0.55260518,112070.0,112060.0,0.06948]
[1757375835030,0.55260518,112070.0,112060.0,0.21944]
[1757375835862,0.55260518,112070.0,112060.0,0.06948]
[1757375836030,0.55260518,112070.0,112060.0,0.21944]
[1757375836621,0.55260518,112070.0,112060.0,0.06948]
[1757375836837,0.55260518,112070.0,112060.0,0.2194]
[1757375838005,0.55260518,112070.0,112060.0,0.06948]
[1757375838218,0.55260518,112070.0,112060.0,0.21936]
[1757375838969,0.55115518,112070.0,112060.0,0.21936]
[1757375841161,0.55260518,112070.0,112060.0,0.21936]
[1757375841510,0.55260518,112070.0,112060.0,0.06948]
[1757375841713,0.55260518,112070.0,112060.0,0.21932]
[1757375841946,0.64452117,112070.0,112060.0,0.21932]
[1757375845140,1.03770611,112070.0,112060.0,0.21924]
[1757375845358,0.98452117,112070.0,112060.0,0.21924]
[1757375849836,1.35230886,112070.0,112060.0,0.06948]
[1757375850041,1.35230886,112070.0,112060.0,0.21916]
[1757375850685,1.35230886,112070.0,112060.0,0.21816]
[1757375851325,1.35430886,112070.0,112060.0,0.21816]
[1757375852804,1.35530886,112070.0,112060.0,0.21816]
[1757375854656,1.44722485,112070.0,112060.0,0.21816]
[1757375855487,0.75934947,112070.0,112060.0,0.21816]
[1757375855694,1.44722485,112070.0,112060.0,0.21816]
[1757375855912,1.35530886,112070.0,112060.0,0.21816]
[1757375858944,0.66743348,112070.0,112060.0,0.21816]
[1757375859155,1.35530886,112070.0,112060.0,0.21816]
[1757375866417,1.01145693,112070.0,112060.0,0.21816]
[1757375875261,1.01145693,112070.0,112060.0,0.14968]
[1757375875436,1.10337292,112070.0,112060.0,0.14968]
[1757375876467,1.01145693,112070.0,112060.0,0.14968]
[1757375877656,0.17847581,112060.0,112050.0,0.06852]
[1757375877859,0.52679232,112060.0,112050.0,0.21784406]
[1757375878014,0.52447926,112060.0,112050.0,0.21784406]
[1757375878387,0.55126018,112060.0,112050.0,0.06864406]
[1757375878627,0.55126018,112060.0,112050.0,0.21784406]
[1757375879441,0.55226018,112060.0,112050.0,0.21784406]
[1757375879945,0.55226018,112060.0,112050.0,0.06864406]
[1757375880247,0.55226018,112060.0,112050.0,0.21780406]
[1757375881523,0.55226018,112060.0,112050.0,0.06864406]
[1757375881730,0.55226018,112060.0,112050.0,0.21776406]
[1757375882094,0.55226018,112060.0,112050.0,0.06864406]
[1757375882246,0.55226018,112060.0,112050.0,0.21776406]
[1757375882456,0.20625673,112060.0,112050.0,0.22306406]
[1757375890755,0.20625673,112060.0,112050.0,0.222958]
[1757375902098,0.20841673,112060.0,112050.0,0.073838]
[1757375902299,0.20841673,112060.0,112050.0,0.222758]
[1757375902717,0.20841673,112060.0,112050.0,0.217458]
[1757375902903,0.20841673,112060.0,112050.0,0.220568]
[1757375903638,0.20841673,112060.0,112050.0,0.222608]
[1757375909314,0.20813934,112060.0,112050.0,0.222608]
[1757375912144,0.20813934,112060.0,112050.0,0.068538]
[1757375912290,0.20813934,112060.0,112050.0,0.217418]
[1757375914967,0.20813934,112060.0,112050.0,0.068538]
[1757375915164,0.20813934,112060.0,112050.0,0.217418]
[1757375919831,0.20813934,112060.0,112050.0,0.220528]
[1757375921193,0.20813934,112060.0,112050.0,0.222568]
[1757375922725,0.20813934,112060.0,112050.0,0.220528]